[Event "GER-ch Youth-U12 2024"]
[Site "Willingen"]
[Date "2024.05.25"]
[Round "9"]
[White "Rau, Eduard"]
[Black "Hoppe, Arthur"]
[Result "0-1"]
[ECO "C01"]
[WhiteElo "1756"]
[BlackElo "1859"]
[Annotator "NA RC"]
[PlyCount "54"]
[EventDate "2022.06.05"]
[EventType "swiss"]
[EventRounds "9"]
[EventCountry "GER"]
[SourceTitle "playchess.com"]
[Source "ChessBase"]
[SourceQuality "1"]
[TimeControl "40/4500+30:900+30"]

1. e4 {[%emt 0:00:00]} e6 {[%emt 0:00:00]} 2. d4 {[%emt 0:00:00]} d5 {[%emt 0:00:00]} 3. Bd3 {[%emt 0:00:00]} c5 {[%emt 0:00:00]} 4. exd5 {[%emt 0:00:00]} exd5 {[%emt 0:00:00]} 5. Nf3 {[%emt 0:00:00]} Nf6 {[%emt 0:00:00]} 6. O-O {[%emt 0:00:00] C01: French: Exchange Variation.} c4 {[%emt 0:00:00]} 7. Be2 {[%emt 0:00:00]} Be7 {[%emt 0:00:00]} 8. b3 {[%emt 0:00:00]} Be6 {[%emt 0:00:00]} 9. Ne5 {[%emt 0:00:00]} Nc6 {[%emt 0:00:00]} 10. f4 {[%emt 0:00:00]} Qc7 {[%emt 0:00:00]} 11. Bb2 {[%emt 0:00:00]} cxb3 {[%emt 0:02:51]} 12. axb3 {[%emt 0:00:00]} Bf5 {[%emt 0:02:25]} 13. c4 {[%emt 0:00:00]} Rd8 {[%emt 0:01:10]} 14. g4 {[%emt 0:02:54]} Bc8 {[%emt 0:03:33]} 15. Bf3 {[%emt 0:10:12]} dxc4 {[%emt 0:02:56]} 16. Nxc6 {[%emt 0:04:18]} bxc6 {[%emt 0:00:25]} 17. bxc4 {[%emt 0:00:07]} O-O {[%emt 0:01:11]} 18. f5 {[%emt 0:04:51]} Qb6 {[%emt 0:05:16]} 19. Qe2 {[%emt 0:01:51]} Rxd4 {[%emt 0:04:20]} 20. Bxd4 {[%emt 0:03:20]} Qxd4+ {[%emt 0:00:34]} 21. Kh1 {[%emt 0:00:06]} Qxa1 {[%emt 0:00:13]} 22. Qxe7 {[%emt 0:00:03]} Qd4 {[%emt 0:02:48]} 23. g5 {[%emt 0:08:26]} Ng4 {[%emt 0:14:07]} (23... Qxc4 $2 {perishes.} 24. Nd2 Qd3 25. gxf6 Bxf5 (25... Qxd2 $2 {is the wrong capture.} 26. Rg1 $18) 26. fxg7 (26. Bxc6 $2 {too greedy.} Qxd2 27. Bg2 g6 $19) 26... Kxg7 27. Bxc6 $18) 24. Bxc6 {[%emt 0:14:05]} Bxf5 {[%emt 0:08:05]} 25. Re1 $19 {[%emt 0:01:58]} Nf2+ {[%emt 0:00:58]} 26. Kg2 {[%emt 0:00:07]} Be6 {[%emt 0:03:56]} 27. Bd5 {[%emt 0:03:30]} Nd3 {[%emt 0:07:14]} 0-1

[Event "GER-ch Youth-U12 2024"]
[Site "Willingen"]
[Date "2024.05.25"]
[Round "9"]
[White "Jahn, Gustav"]
[Black "Vartanian, Roman"]
[Result "0-1"]
[ECO "B38"]
[WhiteElo "1755"]
[BlackElo "1797"]
[Annotator "NA RC"]
[PlyCount "76"]
[EventDate "2022.06.05"]
[EventType "swiss"]
[EventRounds "9"]
[EventCountry "GER"]
[SourceTitle "playchess.com"]
[Source "ChessBase"]
[SourceQuality "1"]
[TimeControl "40/4500+30:900+30"]

1. e4 {[%emt 0:00:00]} c5 {[%emt 0:00:00]} 2. Nf3 {[%emt 0:00:00]} g6 {[%emt 0:00:00]} 3. d4 {[%emt 0:00:00]} cxd4 {[%emt 0:00:00]} 4. Nxd4 {[%emt 0:00:00]} Bg7 {[%emt 0:00:00]} 5. Be3 {[%emt 0:00:00]} Nc6 {[%emt 0:00:00]} 6. c4 {[%emt 0:00:00]} d6 {[%emt 0:00:00]} 7. Nc3 {[%emt 0:00:00]} Nf6 {[%emt 0:00:00]} 8. Be2 {[%emt 0:00:00]} O-O {[%emt 0:00:00]} 9. O-O {[%emt 0:00:00]} Bd7 {[%emt 0:00:00]} 10. Qd2 {[%emt 0:00:00]} Ng4 {[%emt 0:00:00]} 11. Bxg4 {[%emt 0:00:00]} Bxg4 {[%emt 0:00:00]} 12. Rac1 {[%emt 0:00:00]} Bd7 {[%emt 0:00:00]} 13. Nd5 {[%emt 0:00:00]} Ne5 {[%emt 0:04:23]} 14. Bg5 {[%emt 0:00:00]} f6 {[%emt 0:03:40]} 15. Bh4 {[%emt 0:03:08]} Nc6 {[%emt 0:11:25]} 16. Rfd1 {[%emt 0:05:17]} Nxd4 {[%emt 0:03:40]} 17. Qxd4 {[%emt 0:00:16]} g5 {[%emt 0:00:18]} 18. Nxe7+ {[%emt 0:05:17]} Qxe7 {[%emt 0:00:36]} 19. Bg3 {[%emt 0:02:56]} Rfe8 {[%emt 0:03:55]} 20. Qxd6 {[%emt 0:01:53]} Qxd6 {[%emt 0:00:46]} 21. Rxd6 {[%emt 0:00:15]} Bc6 {[%emt 0:00:32]} 22. f3 {[%emt 0:00:58]} Rad8 {[%emt 0:00:36]} 23. Rcd1 {[%emt 0:02:16]} Rxd6 {[%emt 0:01:07]} 24. Rxd6 {[%emt 0:00:22]} Kf7 {[%emt 0:00:35]} 25. Rd2 {[%emt 0:01:33]} Bf8 {[%emt 0:00:29]} 26. a3 {[%emt 0:01:05]} Bc5+ {[%emt 0:00:06]} 27. Kf1 {[%emt 0:00:33]} a5 {[%emt 0:00:06]} 28. Ke2 {[%emt 0:05:28]} f5 {[%emt 0:01:03]} 29. Bd6 {[%emt 0:02:30]} Bxd6 {[%emt 0:00:25]} 30. Rxd6 {[%emt 0:00:05]} fxe4 {[%emt 0:00:06]} 31. Kf2 {[%emt 0:00:53]} a4 {[%emt 0:00:24]} 32. Rh6 {[%emt 0:01:13]} Kg7 {[%emt 0:00:16]} 33. Rd6 {[%emt 0:00:28]} Rf8 {[%emt 0:00:38]} 34. Ke2 {[%emt 0:01:01]} exf3+ {[%emt 0:00:06]} 35. gxf3 {[%emt 0:00:07]} Bxf3+ {[%emt 0:00:28]} 36. Ke3 {[%emt 0:00:37]} Bc6 {[%emt 0:00:06]} 37. Rd4 {[%emt 0:01:14]} Rf3+ {[%emt 0:00:07]} 38. Ke2 {[%emt 0:00:23]} Rh3 {[%emt 0:00:07]} 0-1

[Event "GER-ch Youth-U12 2024"]
[Site "Willingen"]
[Date "2024.05.25"]
[Round "9"]
[White "Lanert, Theodor"]
[Black "Obermair, Hannes"]
[Result "1-0"]
[ECO "B28"]
[WhiteElo "1742"]
[BlackElo "1668"]
[Annotator "NA RC"]
[PlyCount "105"]
[EventDate "2022.06.05"]
[EventType "swiss"]
[EventRounds "9"]
[EventCountry "GER"]
[SourceTitle "playchess.com"]
[Source "ChessBase"]
[SourceQuality "1"]
[TimeControl "40/4500+30:900+30"]

1. e4 {[%emt 0:00:00]} c5 {[%emt 0:00:00]} 2. Nf3 {[%emt 0:00:00]} a6 {[%emt 0:00:00]} 3. Be2 {[%emt 0:00:00]} Nc6 {[%emt 0:00:00]} 4. d3 {[%emt 0:00:00]} e6 {[%emt 0:00:00]} 5. Bf4 {[%emt 0:00:00]} d5 {[%emt 0:00:00]} 6. O-O {[%emt 0:00:00]} Nge7 {[%emt 0:00:00]} 7. Re1 {[%emt 0:00:00]} g6 {[%emt 0:00:00]} 8. c3 {[%emt 0:00:00]} Bg7 {[%emt 0:00:00]} 9. e5 {[%emt 0:06:11]} O-O {[%emt 0:00:00]} 10. Na3 {[%emt 0:09:21]} b6 {[%emt 0:08:19]} 11. d4 {[%emt 0:07:16]} cxd4 {[%emt 0:04:24]} 12. cxd4 {[%emt 0:00:16]} Bb7 {[%emt 0:01:32]} 13. Qd2 {[%emt 0:05:18]} Rc8 {[%emt 0:06:44]} 14. Bd3 {[%emt 0:05:29]} Qd7 {[%emt 0:04:01]} 15. Rac1 {[%emt 0:04:09]} Rc7 {[%emt 0:06:18]} 16. Rc2 {[%emt 0:03:10]} Rfc8 {[%emt 0:04:05]} 17. Rec1 {[%emt 0:03:08]} Ra8 {[%emt 0:04:06]} 18. Bg5 {[%emt 0:09:56]} Re8 {[%emt 0:06:44]} 19. Bf6 {[%emt 0:03:09]} Ra8 {[%emt 0:09:07]} 20. h4 {[%emt 0:06:33]} Kf8 {[%emt 0:08:52]} 21. h5 {[%emt 0:03:39]} Ng8 {[%emt 0:02:16]} 22. Bg5 {[%emt 0:02:25]} h6 {[%emt 0:02:57]} 23. Be3 {[%emt 0:01:17]} g5 {[%emt 0:01:57]} 24. b4 {[%emt 0:03:37]} b5 {[%emt 0:01:05]} 25. Bxb5 {[%emt 0:03:47]} axb5 {[%emt 0:01:08]} 26. Nxb5 {[%emt 0:00:28]} Rcc8 {[%emt 0:02:41]} 27. Nd6 {[%emt 0:00:19]} Nge7 {[%emt 0:04:04]} 28. b5 {[%emt 0:02:22]} Nd8 {[%emt 0:02:06]} 29. Nxc8 {[%emt 0:00:21]} Rxc8 {[%emt 0:00:44]} 30. Qb4 {[%emt 0:01:04]} Rxc2 {[%emt 0:00:47]} 31. Rxc2 {[%emt 0:00:03]} Kg8 {[%emt 0:00:59]} 32. a4 {[%emt 0:00:12]} Bf8 {[%emt 0:00:47]} 33. a5 {[%emt 0:01:14]} Nc8 {[%emt 0:00:37]} 34. Qb3 {[%emt 0:00:17]} Na7 {[%emt 0:01:19]} 35. a6 {[%emt 0:01:30]} Bc8 {[%emt 0:00:54]} 36. b6 {[%emt 0:00:07]} Bxa6 {[%emt 0:01:27]} 37. bxa7 {[%emt 0:00:08]} Qxa7 {[%emt 0:00:22]} 38. Qa4 {[%emt 0:00:28]} Qb6 {[%emt 0:00:29]} 39. Rc1 {[%emt 0:04:10]} Bc4 {[%emt 0:00:50]} 40. Nh2 {[%emt 0:02:43]} Qb2 {[%emt 0:01:09]} 41. Qc2 {[%emt 0:15:19]} Qxc2 {[%emt 0:15:31]} 42. Rxc2 {[%emt 0:00:06]} Nc6 {[%emt 0:00:34]} 43. Ng4 {[%emt 0:01:57]} Nb4 {[%emt 0:00:53]} 44. Rb2 {[%emt 0:00:29]} Kg7 {[%emt 0:00:41]} 45. Bd2 {[%emt 0:00:00]} Nd3 {[%emt 0:00:00]} 46. Rb8 {[%emt 0:00:00]} Be7 {[%emt 0:00:00]} 47. g3 {[%emt 0:00:00]} Ba2 {[%emt 0:00:00]} 48. Re8 {[%emt 0:00:00]} Bf8 {[%emt 0:00:00]} 49. Bxg5 {[%emt 0:00:00]} hxg5 {[%emt 0:00:00]} 50. h6+ {[%emt 0:00:00]} Kh7 {[%emt 0:00:00]} 51. Rxf8 {[%emt 0:00:00]} Kg6 {[%emt 0:00:00]} 52. Rg8+ {[%emt 0:00:00]} Kh7 {[%emt 0:00:00]} 53. Rg7+ {[%emt 0:00:00]} 1-0

[Event "GER-ch Youth-U12 2024"]
[Site "Willingen"]
[Date "2024.05.25"]
[Round "9"]
[White "Schulz, Robin"]
[Black "Wettstein, Levin"]
[Result "1/2-1/2"]
[ECO "C31"]
[WhiteElo "1730"]
[BlackElo "1753"]
[Annotator "NA RC"]
[PlyCount "103"]
[EventDate "2022.06.05"]
[EventType "swiss"]
[EventRounds "9"]
[EventCountry "GER"]
[SourceTitle "playchess.com"]
[Source "ChessBase"]
[SourceQuality "1"]
[TimeControl "40/4500+30:900+30"]

1. e4 {[%emt 0:00:00]} e5 {[%emt 0:00:00]} 2. f4 {[%emt 0:00:00]} d5 {[%emt 0:00:00]} 3. exd5 {[%emt 0:00:00]} c6 {[%emt 0:00:00]} 4. dxc6 {[%emt 0:01:36]} Nxc6 {[%emt 0:00:00]} 5. Nc3 {[%emt 0:00:00]} exf4 {[%emt 0:00:00]} 6. Nf3 {[%emt 0:00:00]} Bd6 {[%emt 0:00:00]} 7. d4 {[%emt 0:00:00]} Nge7 {[%emt 0:00:00]} 8. Bc4 {[%emt 0:00:00]} O-O {[%emt 0:00:00]} 9. O-O {[%emt 0:00:00]} Bg4 {[%emt 0:00:00]} 10. h3 {[%emt 0:00:00]} Bh5 {[%emt 0:00:00]} 11. a3 {[%emt 0:00:00]} Bc7 {[%emt 0:00:00]} 12. Ne2 {[%emt 0:00:00]} Nf5 {[%emt 0:00:00]} 13. c3 {[%emt 0:00:00]} Ng3 {[%emt 0:00:00]} 14. Nxg3 {[%emt 0:08:17]} fxg3 {[%emt 0:00:00]} 15. Be3 {[%emt 0:03:50]} Bb6 {[%emt 0:00:00]} 16. Bf4 {[%emt 0:01:44]} Rc8 {[%emt 0:00:00]} 17. Be2 {[%emt 0:01:04]} Bc7 {[%emt 0:00:10]} 18. Qd2 {[%emt 0:02:20]} Re8 {[%emt 0:01:00]} 19. Bb5 {[%emt 0:04:48]} a6 {[%emt 0:02:05]} 20. Bxc6 {[%emt 0:00:00]} bxc6 {[%emt 0:00:09]} 21. Ne5 {[%emt 0:00:00]} Bxe5 {[%emt 0:00:11]} 22. dxe5 {[%emt 0:00:00]} Qxd2 {[%emt 0:00:06]} 23. Bxd2 {[%emt 0:00:00]} Rxe5 {[%emt 0:00:12]} 24. Rfe1 {[%emt 0:00:08]} Rce8 {[%emt 0:00:43]} 25. Rxe5 {[%emt 0:00:08]} Rxe5 {[%emt 0:00:05]} 26. Re1 {[%emt 0:00:04]} Rxe1+ {[%emt 0:03:05]} 27. Bxe1 {[%emt 0:00:04]} f6 {[%emt 0:00:56]} 28. Bxg3 {[%emt 0:00:05]} Kf7 {[%emt 0:00:05]} 29. Kf2 {[%emt 0:00:28]} Ke6 {[%emt 0:00:31]} 30. c4 {[%emt 0:00:27]} Bd1 {[%emt 0:01:16]} 31. Ke3 {[%emt 0:01:11]} c5 {[%emt 0:02:10]} 32. b4 {[%emt 0:01:35]} Bb3 {[%emt 0:01:10]} 33. Kd3 {[%emt 0:00:25]} Kd7 {[%emt 0:01:11]} 34. bxc5 {[%emt 0:01:27]} Kc6 {[%emt 0:00:24]} 35. Kd4 {[%emt 0:00:25]} Bd1 {[%emt 0:01:44]} 36. Bd6 {[%emt 0:01:32]} Be2 {[%emt 0:00:25]} 37. g3 {[%emt 0:00:39]} g6 {[%emt 0:01:16]} 38. Be7 {[%emt 0:00:51]} f5 {[%emt 0:02:54]} 39. Ke5 {[%emt 0:04:12]} Bxc4 {[%emt 0:03:41]} 40. Kf6 {[%emt 0:00:30]} Kd7 {[%emt 0:02:47]} 41. Bd6 {[%emt 0:15:27]} Bf1 {[%emt 0:16:10]} 42. h4 {[%emt 0:00:47]} Be2 {[%emt 0:00:33]} 43. Kg7 {[%emt 0:00:27]} Bh5 {[%emt 0:00:28]} 44. Kxh7 {[%emt 0:00:07]} Kc6 {[%emt 0:00:09]} 45. Kg7 {[%emt 0:00:50]} Kd7 {[%emt 0:00:22]} 46. Kf6 {[%emt 0:00:15]} Kc6 {[%emt 0:00:10]} 47. Ke5 {[%emt 0:01:14]} Be2 {[%emt 0:00:22]} 48. Kd4 {[%emt 0:00:58]} Bg4 {[%emt 0:01:00]} 49. Kc4 {[%emt 0:00:13]} Be2+ {[%emt 0:00:57]} 50. Kb4 {[%emt 0:00:05]} Bg4 {[%emt 0:01:02]} 51. Ka5 {[%emt 0:00:41]} Kb7 {[%emt 0:01:16]} 52. a4 {[%emt 0:01:11]} 1/2-1/2

[Event "GER-ch Youth-U12 2024"]
[Site "Willingen"]
[Date "2024.05.25"]
[Round "9"]
[White "Vinogradov, Ilia"]
[Black "Hepp, Daniel"]
[Result "0-1"]
[ECO "B39"]
[WhiteElo "1723"]
[BlackElo "1721"]
[Annotator "NA RC"]
[PlyCount "116"]
[EventDate "2022.06.05"]
[EventType "swiss"]
[EventRounds "9"]
[EventCountry "GER"]
[SourceTitle "playchess.com"]
[Source "ChessBase"]
[SourceQuality "1"]
[TimeControl "40/4500+30:900+30"]

1. e4 {[%emt 0:00:00]} c5 {[%emt 0:00:00]} 2. Nf3 {[%emt 0:00:00]} g6 {[%emt 0:00:00]} 3. d4 {[%emt 0:00:00]} cxd4 {[%emt 0:00:00]} 4. Nxd4 {[%emt 0:00:00]} Nc6 {[%emt 0:00:00]} 5. c4 {[%emt 0:00:00]} Bg7 {[%emt 0:00:00]} 6. Be3 {[%emt 0:00:00]} Nf6 {[%emt 0:00:00]} 7. Nc3 {[%emt 0:00:00]} Ng4 {[%emt 0:00:00]} 8. Qxg4 {[%emt 0:00:00]} Nxd4 {[%emt 0:00:00]} 9. Qd1 {[%emt 0:00:00]} Nc6 {[%emt 0:00:00]} 10. Be2 {[%emt 0:00:00]} O-O {[%emt 0:00:00]} 11. O-O {[%emt 0:00:00]} d6 {[%emt 0:00:00]} 12. Qd2 {[%emt 0:00:00]} Bd7 {[%emt 0:01:21]} 13. Rad1 {[%emt 0:00:00]} Be6 {[%emt 0:04:42]} 14. Nd5 {[%emt 0:00:00]} Rc8 {[%emt 0:03:50]} 15. f4 {[%emt 0:08:20]} f5 {[%emt 0:04:39]} 16. exf5 {[%emt 0:12:06]} Bxf5 {[%emt 0:06:23]} 17. Rfe1 {[%emt 0:05:11]} Re8 {[%emt 0:15:32]} 18. Bf3 {[%emt 0:04:03]} h5 {[%emt 0:12:38]} 19. h3 {[%emt 0:01:48]} e5 {[%emt 0:02:50]} 20. Nc3 {[%emt 0:05:27]} exf4 {[%emt 0:07:37]} 21. Bxf4 {[%emt 0:00:54]} Qb6+ {[%emt 0:03:05]} 22. Kh1 {[%emt 0:05:19]} Nd4 {[%emt 0:01:13]} 23. Bd5+ {[%emt 0:02:27]} Ne6 {[%emt 0:03:54]} 24. Bxd6 {[%emt 0:06:37]} Kh7 {[%emt 0:02:33]} 25. Bxe6 {[%emt 0:02:05]} Bxe6 {[%emt 0:01:19]} 26. c5 {[%emt 0:02:04]} Qc6 {[%emt 0:00:34]} 27. Ne4 {[%emt 0:00:58]} Bxa2 {[%emt 0:04:46]} 28. Ng5+ {[%emt 0:00:40]} Kh8 {[%emt 0:01:41]} 29. Rf1 {[%emt 0:03:33]} Be6 {[%emt 0:02:30]} 30. Nxe6 {[%emt 0:01:54]} Rxe6 {[%emt 0:00:17]} 31. Rf7 {[%emt 0:01:59]} Rce8 {[%emt 0:03:19]} 32. b4 {[%emt 0:07:41]} Qe4 {[%emt 0:03:07]} 33. Rdf1 {[%emt 0:01:57]} Kg8 {[%emt 0:00:43]} 34. Qf2 {[%emt 0:01:24]} Bd4 {[%emt 0:02:22]} 35. Rf8+ {[%emt 0:00:48]} Kh7 {[%emt 0:00:33]} 36. Qf7+ {[%emt 0:01:45]} Bg7 {[%emt 0:00:07]} 37. Rf4 {[%emt 0:04:41]} Qc6 {[%emt 0:01:50]} 38. h4 {[%emt 0:04:37]} Re1+ {[%emt 0:00:30]} 39. Kh2 {[%emt 0:00:15]} R1e6 {[%emt 0:00:19]} 40. Qxg7+ {[%emt 0:00:30]} Kxg7 {[%emt 0:00:15]} 41. R4f7+ {[%emt 0:15:05]} Kh6 {[%emt 0:15:16]} 42. Bf4+ {[%emt 0:00:23]} g5 {[%emt 0:00:23]} 43. hxg5+ {[%emt 0:01:15]} Kg6 {[%emt 0:01:12]} 44. Rf6+ {[%emt 0:00:41]} Rxf6 {[%emt 0:00:00]} 45. Rxf6+ {[%emt 0:00:00]} Qxf6 {[%emt 0:00:00]} 46. gxf6 {[%emt 0:00:00]} Re4 {[%emt 0:00:00]} 47. Bd2 {[%emt 0:00:00]} a6 {[%emt 0:00:00]} 48. Bc3 {[%emt 0:00:00]} Rc4 {[%emt 0:00:00]} 49. Be1 {[%emt 0:00:00]} Kxf6 {[%emt 0:00:00]} 50. Kg3 {[%emt 0:00:00]} Ke6 {[%emt 0:00:00]} 51. Kf3 {[%emt 0:00:00]} Kd5 {[%emt 0:00:00]} 52. g3 {[%emt 0:00:00]} Kc6 {[%emt 0:00:00]} 53. Ke3 {[%emt 0:00:00]} Kb5 {[%emt 0:00:00]} 54. Kd3 {[%emt 0:00:00]} Rxb4 {[%emt 0:00:00]} 55. Kc3 {[%emt 0:00:00]} Kxc5 {[%emt 0:00:00]} 56. Bf2+ {[%emt 0:00:00]} Kb5 {[%emt 0:00:00]} 57. Be3 {[%emt 0:00:00]} a5 {[%emt 0:00:00]} 58. Kc2 {[%emt 0:00:00]} a4 {[%emt 0:02:00]} 0-1

[Event "GER-ch Youth-U12 2024"]
[Site "Willingen"]
[Date "2024.05.25"]
[Round "9"]
[White "Sun, Christopher"]
[Black "Draude, Theo"]
[Result "0-1"]
[ECO "B20"]
[WhiteElo "1714"]
[BlackElo "1731"]
[Annotator "NA RC"]
[PlyCount "42"]
[EventDate "2022.06.05"]
[EventType "swiss"]
[EventRounds "9"]
[EventCountry "GER"]
[SourceTitle "playchess.com"]
[Source "ChessBase"]
[SourceQuality "1"]
[TimeControl "40/4500+30:900+30"]

1. e4 {[%emt 0:00:00]} c5 {[%emt 0:00:00]} 2. Nf3 {[%emt 0:00:00]} d6 {[%emt 0:00:00]} 3. b3 {[%emt 0:00:00]} Nf6 {[%emt 0:00:00]} 4. Nc3 {[%emt 0:00:00]} g6 {[%emt 0:00:00]} 5. Bb2 {[%emt 0:00:00]} Bg7 {[%emt 0:00:00]} 6. Nd5 {[%emt 0:00:00]} O-O {[%emt 0:00:00]} 7. Nxf6+ {[%emt 0:00:00]} exf6 {[%emt 0:00:00]} 8. Bc4 {[%emt 0:00:00]} Re8 {[%emt 0:00:00]} 9. d3 {[%emt 0:06:29]} d5 {[%emt 0:00:00]} 10. Bb5 {[%emt 0:05:11]} Qa5+ {[%emt 0:00:00]} 11. Qd2 {[%emt 0:00:46]} Qxb5 {[%emt 0:00:00]} 12. O-O-O {[%emt 0:00:54]} dxe4 {[%emt 0:00:00]} 13. dxe4 {[%emt 0:00:20]} Bg4 {[%emt 0:00:00]} 14. Qf4 {[%emt 0:00:43]} f5 {[%emt 0:02:31]} 15. exf5 {[%emt 0:01:56]} Bxb2+ {[%emt 0:01:55]} 16. Kxb2 {[%emt 0:00:08]} Bxf5 {[%emt 0:01:43]} 17. Qh6 {[%emt 0:00:51]} Qc6 {[%emt 0:00:28]} 18. Rhe1 {[%emt 0:05:23]} Qf6+ {[%emt 0:01:40]} 19. Kb1 {[%emt 0:03:56]} Rxe1 {[%emt 0:00:29]} 20. Rxe1 {[%emt 0:00:08]} Nc6 {[%emt 0:00:26]} 21. Ng5 {[%emt 0:02:04]} Qg7 {[%emt 0:01:33]} 0-1

[Event "GER-ch Youth-U12 2024"]
[Site "Willingen"]
[Date "2024.05.25"]
[Round "9"]
[White "Hellriegel, Hannes"]
[Black "Heins, Simon"]
[Result "0-1"]
[ECO "C57"]
[WhiteElo "1701"]
[BlackElo "1626"]
[Annotator "NA RC"]
[PlyCount "82"]
[EventDate "2022.06.05"]
[EventType "swiss"]
[EventRounds "9"]
[EventCountry "GER"]
[SourceTitle "playchess.com"]
[Source "ChessBase"]
[SourceQuality "1"]
[TimeControl "40/4500+30:900+30"]

1. e4 {[%emt 0:00:00]} e5 {[%emt 0:00:00]} 2. Nf3 {[%emt 0:00:00]} Nc6 {[%emt 0:00:00]} 3. Bc4 {[%emt 0:00:00]} Nf6 {[%emt 0:00:00]} 4. Ng5 {[%emt 0:00:00]} d5 {[%emt 0:00:00]} 5. exd5 {[%emt 0:00:00]} b5 {[%emt 0:00:00]} 6. Bf1 {[%emt 0:00:00]} Nxd5 {[%emt 0:00:00]} 7. Bxb5 {[%emt 0:00:00]} Bd7 {[%emt 0:00:00]} 8. d3 {[%emt 0:03:33]} Qf6 {[%emt 0:02:49]} 9. Ne4 {[%emt 0:05:07]} Qg6 {[%emt 0:01:11]} 10. O-O {[%emt 0:04:48]} Rb8 {[%emt 0:03:26]} 11. Nbc3 {[%emt 0:04:28]} Nxc3 {[%emt 0:02:18]} 12. Nxc3 {[%emt 0:00:06]} Bb4 {[%emt 0:01:33]} 13. Bc4 {[%emt 0:04:11]} Bg4 {[%emt 0:04:26]} 14. f3 {[%emt 0:04:59]} Bh3 {[%emt 0:00:54]} 15. Qe2 {[%emt 0:06:10]} O-O {[%emt 0:08:45]} 16. Kh1 {[%emt 0:02:45]} Nd4 {[%emt 0:08:53]} 17. Qd2 {[%emt 0:05:39]} Bd7 {[%emt 0:01:46]} 18. a3 {[%emt 0:02:35]} Bd6 {[%emt 0:03:43]} 19. Ne4 {[%emt 0:05:49]} Bc6 {[%emt 0:04:28]} 20. b3 {[%emt 0:05:52]} Bxe4 {[%emt 0:05:16]} 21. fxe4 {[%emt 0:01:22]} Kh8 {[%emt 0:01:11]} 22. Bb2 {[%emt 0:05:56]} Qh5 {[%emt 0:03:39]} 23. Rf2 {[%emt 0:07:41]} f5 {[%emt 0:04:58]} 24. Re1 {[%emt 0:04:03]} f4 {[%emt 0:01:41]} 25. Qd1 {[%emt 0:04:01]} Qh4 {[%emt 0:04:04]} 26. Qd2 {[%emt 0:01:34]} Rbe8 {[%emt 0:01:53]} 27. c3 {[%emt 0:01:09]} Nc6 {[%emt 0:01:25]} 28. Bb5 {[%emt 0:01:09]} g5 {[%emt 0:06:26]} 29. Bxc6 {[%emt 0:02:10]} Re6 {[%emt 0:00:10]} 30. g3 {[%emt 0:01:43]} fxg3 {[%emt 0:00:42]} 31. Rxf8+ {[%emt 0:00:48]} Bxf8 {[%emt 0:00:02]} 32. Rf1 {[%emt 0:00:53]} Bg7 {[%emt 0:04:44]} 33. Bd5 {[%emt 0:01:08]} Rh6 {[%emt 0:00:06]} 34. Bc1 {[%emt 0:01:05]} Qg4 {[%emt 0:01:47]} 35. Qxg5 {[%emt 0:01:35]} Rxh2+ {[%emt 0:01:15]} 36. Kg1 {[%emt 0:00:07]} Rh1+ {[%emt 0:00:18]} 37. Kg2 {[%emt 0:00:23]} Qh3+ {[%emt 0:00:05]} 38. Kf3 {[%emt 0:00:05]} g2+ {[%emt 0:01:13]} 39. Ke2 {[%emt 0:00:37]} gxf1=Q+ {[%emt 0:00:16]} 40. Kd2 {[%emt 0:00:00]} Qxc1+ {[%emt 0:00:10]} 41. Ke2 {[%emt 0:13:19]} Qhf1# {[%emt 0:15:42]} 0-1